{"text_format":"3","workbook":"xlsx","n_sheets":2,"sheets":["附件1","附件2"],"not_rendered":{"defined_names":2},"read":"whole","date_system":"1900"}

{"sheet":"附件1","index":0,"n_rows":23,"n_cols":13,"rows_kept":23,"merged":[[1,0,1,12]]}
["附件1"]
["\n蓬安县2021年上半年公开招聘中小学（幼儿园）教师岗位和条件要求一览表\n\n                                         "]
["县（市、区）","招聘单位","招聘岗位类别","招聘岗位名称","岗位     编码","招聘    人数","  招聘对象 及范围","年龄","学历    （学位）","专业条件","其他条件","笔试科目","面试方式"]
["蓬安县","蓬安县教育科技和体育局","专技岗位","高中语文教师",540801,4,"1.面向全国       2.见公告","1986年4月12日及以后出生","大学本科及以上学历且具有相应学位","本科： 汉语言、汉语言文学、汉语国际教育、古典文献学、应用语言学、秘书学、中国语言与文化\n研究生：中国语言文学、语言学及应用语言学、汉语言文字学、中国古代文学、中国现当代文学、学科教学（语文）、中国古典文献学、语言学及应用语言学","1、具有高中及以上语文教师资格证书                             2、持有二级甲等及以上普通话证书  ","《教育公共基础》","讲课"]
["蓬安县","蓬安县教育科技和体育局","专技岗位","高中数学教师",540802,3,"1.面向全国      2.见公告","1986年4月12日及以后出生","大学本科及以上学历且具有相应学位","本科：数学与应用数学、数理基础科学、信息与计算科学、数据计算及应用\n研究生：数学、基础数学、计算数学、应用数学、学科教学（数学）","1、具有高中及以上数学教师资格证书                          2、持有二级乙等及以上普通话证书  ","《教育公共基础》","讲课"]
["蓬安县","蓬安县教育科技和体育局","专技岗位","高中英语教师",540803,4,"1.面向全国      2.见公告","1986年4月12日及以后出生","大学本科及以上学历且具有相应学位","本科：英语、商务英语\n研究生：英语语言文学、学科教学（英语）、英语笔译、英语口译","1、具有高中及以上英语教师资格证书                          2、持有二级乙等及以上普通话证书                              3、英语专业四级及以上合格或大学英语六级（CET-6)425分及以上","《教育公共基础》","讲课"]
["蓬安县","蓬安县教育科技和体育局","专技岗位","高中物理教师",540804,1,"1.面向全国       2.见公告","1986年4月12日及以后出生","大学本科及以上学历且具有相应学位","本科：物理学、应用物理学、声学         \n研究生：物理学、理论物理、声学、光学、学科教学（物理）","1、具有高中及以上物理教师资格证书                          2、持有二级乙等及以上普通话证书  ","《教育公共基础》","讲课"]
["蓬安县","蓬安县教育科技和体育局","专技岗位","高中生物教师",540805,1,"1.面向全国      2.见公告","1986年4月12日及以后出生","大学本科及以上学历且具有相应学位","本科：生物科学、生物技术、生物信息学、生物工程\n研究生：生物学、水生生物学、微生物学、神经生物学、细胞生物学、学科教学（生物）","1、具有高中及以上生物教师资格证书                          2、持有二级乙等及以上普通话证书  ","《教育公共基础》","讲课"]
["蓬安县","蓬安县教育科技和体育局","专技岗位","高中心理学教师",540806,3,"1.面向全国      2.见公告","1986年4月12日及以后出生","大学本科及以上学历且具有相应学位","本科：心理学、应用心理学                                  研究生：心理健康教育、应用心理、心理学、应用心理学","1、具有高中及以上心理学教师资格证书                          2、持有二级乙等及以上普通话证书  ","《教育公共基础》","讲课"]
["蓬安县","蓬安县教育科技和体育局","专技岗位","初中语文教师",540807,2,"1.面向全国      2.见公告","1986年4月12日及以后出生","大学本科及以上学历且具有相应学位","本科： 汉语言、汉语言文学、汉语国际教育、古典文献学、应用语言学、秘书学、中国语言与文化\n研究生：中国语言文学、语言学及应用语言学、汉语言文字学、中国古代文学、中国现当代文学、学科教学（语文）、中国古典文献学、语言学及应用语言学","1、具有初中及以上语文教师资格证书；                                                    2、持有二级甲等及以上普通话证书  ","《教育公共基础》","讲课"]
["蓬安县","蓬安县教育科技和体育局","专技岗位","初中数学教师",540808,2,"1.面向全国           2.见公告","1986年4月12日及以后出生","大学本科及以上学历且具有相应学位","本科：数学与应用数学、数理基础科学、信息与计算科学、数据计算及应用\n研究生：数学、基础数学、计算数学、应用数学、学科教学（数学）","1、具有初中及以上数学教师资格证书                         2、持有二级乙等及以上普通话证书  ","《教育公共基础》","讲课"]
["蓬安县","蓬安县教育科技和体育局","专技岗位","初中英语教师",540809,3,"1.面向全国      2.见公告","1986年4月12日及以后出生","大学本科及以上学历且具有相应学位","本科：英语、商务英语\n研究生：英语语言文学、学科教学（英语）、英语笔译、英语口译","1、具有初中及以上英语教师资格证书                          2、持有二级乙等及以上普通话证书                     3、英语专业四级及以上合格或大学英语六级（CET-6)425分及以上","《教育公共基础》","讲课"]
["蓬安县","蓬安县教育科技和体育局","专技岗位","初中物理教师",540810,1,"1.面向全国      2.见公告","1986年4月12日及以后出生","大学本科及以上学历且具有相应学位","本科：物理学、应用物理学、声学         \n研究生：物理学、理论物理、声学、光学、学科教学（物理）","1、具有初中及以上物理教师资格证书；                             2、持有二级乙等及以上普通话证书    ","《教育公共基础》","讲课"]
["蓬安县","蓬安县教育科技和体育局","专技岗位","初中音乐教师",540811,1,"1.面向全国      2.见公告","1986年4月12日及以后出生","大学本科及以上学历","本科：音乐表演、音乐学、舞蹈表演、舞蹈学、舞蹈编导、舞蹈教育                                                研究生：音乐学、音乐与舞蹈学、音乐、舞蹈、学科教学（音乐）","1、具有初中及以上音乐教师资格证书                         2、持有二级乙等及以上普通话证书    ","《教育公共基础》","讲课+技能测试"]
["蓬安县","蓬安县教育科技和体育局","专技岗位","初中美术教师",540812,2,"1.面向全国      2.见公告","1986年4月12日及以后出生","大学本科及以上学历","本科：美术学、绘画、雕塑、书法学、中国画、艺术设计学、环境设计、视觉传达设计、艺术教育                                      研究生：美术学、设计艺术学、设计学、美术、艺术设计","1、具有初中及以上美术教师资格证书                         2、持有二级乙等及以上普通话证书    ","《教育公共基础》","讲课+技能测试"]
["蓬安县","蓬安县教育科技和体育局","专技岗位","小学语文教师",540813,10,"1.面向全国      2.见公告","1986年4月12日及以后出生","大学本科及以上学历","本科： 小学教育、汉语言、汉语言文学、汉语国际教育、古典文献学、应用语言学、秘书学、中国语言与文化\n研究生：中国语言文学、语言学及应用语言学、汉语言文字学、中国古代文学、中国现当代文学、学科教学（语文）、小学教育、中国古典文献学、语言学及应用语言学","1、具有小学及以上语文教师资格证书                          2、持有二级甲等及以上普通话证书    ","《教育公共基础》","讲课"]
["蓬安县","蓬安县教育科技和体育局","专技岗位","小学数学教师",540814,6,"1.面向全国      2.见公告","1986年4月12日及以后出生","大学本科及以上学历","本科：小学教育、数学与应用数学、数理基础科学、信息与计算科学、数据计算及应用\n研究生：数学、基础数学、计算数学、应用数学、学科教学（数学）、小学教育","1、具有小学及以上数学教师资格证书                                   2、持有二级甲等及以上普通话证书     ","《教育公共基础》","讲课"]
["蓬安县","蓬安县教育科技和体育局","专技岗位","小学英语教师",540815,1,"1.面向全国       2.见公告","1986年4月12日及以后出生","大学本科及以上学历","本科：英语、商务英语\n研究生：英语语言文学、学科教学（英语）、英语笔译、英语口译","1、具有小学及以上英语教师资格证书                             2、持有二级甲等及以上普通话证书                    3、英语专业四级及以上合格或大学英语四级（CET-4)425分及以上","《教育公共基础》","讲课"]
["蓬安县","蓬安县教育科技和体育局","专技岗位","幼儿英语教师",540816,1,"1.面向全国      2.见公告","1986年4月12日及以后出生","大学本科及以上学历","本科：英语、商务英语\n研究生：英语语言文学、学科教学（英语）、英语笔译、英语口译","1、具有英语教师资格证书                                          2、持有二级甲等及以上普通话证书                   ","《教育公共基础》","讲课"]
["蓬安县","蓬安县教育科技和体育局","专技岗位","学前教育教师",540817,4,"1.面向全国      2.见公告","1986年4月12日及以后出生","大学专科及以上学历","专科：学前教育\n本科：学前教育\n研究生：学前教育学、学前教育","1、具有幼儿园(学前教育）教师资格证书                                                  2、持有二级甲等及以上普通话证书     ","《教育公共基础》","讲课+技能测试"]
["蓬安县","蓬安县教育科技和体育局","专技岗位","幼儿园教师",540818,16,"1.面向全国      2.见公告","1986年4月12日及以后出生","大学专科及以上学历","专科：学前教育                          本科：学前教育\n研究生：学前教育学、学前教育","1、具有幼儿园(学前教育）教师资格证书                                                  2、持有二级甲等及以上普通话证书     ","《教育公共基础》","讲课+技能测试"]
["蓬安县","蓬安县教育科技和体育局","专技岗位","小学心理学教师",540819,8,"1.面向全国      2.见公告","1986年4月12日及以后出生","大学本科及以上学历","本科：心理学、应用心理学                                  研究生：心理健康教育、应用心理、心理学、应用心理学","1、具有小学及以上心理学教师资格证书                          2、持有二级甲等及以上普通话证书  ","《教育公共基础》","讲课"]
["蓬安县","蓬安县教育科技和体育局","专技岗位","初中心理学教师",540820,2,"1.面向全国      2.见公告","1986年4月12日及以后出生","大学本科及以上学历","本科：心理学、应用心理学                                  研究生：心理健康教育、应用心理、心理学、应用心理学","1、具有初中及以上心理学教师资格证书                          2、持有二级乙等及以上普通话证书  ","《教育公共基础》","讲课"]

{"sheet":"附件2","index":1,"n_rows":30,"n_cols":23,"rows_kept":30,"merged":[[0,0,0,22],[1,0,3,0],[1,1,3,1],[1,2,1,22],[2,2,2,4],[2,5,2,7],[2,8,2,11],[2,12,2,13],[2,17,2,19],[2,20,3,20],[2,21,3,21],[2,22,3,22],[29,0,29,1]]}
["附件2   蓬安县2021年上半年公开招聘中小学（幼儿园）教师岗位（人数）一览表"]
["序号","单位名称\n","岗位设置"]
[null,null,"语文",null,null,"数学",null,null,"英语",{"$nulls":3},"物理",null,"生物","音乐","美术","心理学",null,null,"学前教育","幼 儿 园","合计"]
[null,null,"小学","初中","高中","小学","初中","高中","幼 儿园","小学","初中","高中","初中","高中","高中","初中","初中","小学","初中","高中"]
[1,"周口中学",{"$nulls":17},1,null,null,{"$f":"SUM(C5:V5)","v":1}]
[2,"周口幼儿园",{"$nulls":19},1,1]
[3,"银汉小学",1,null,null,1,{"$nulls":11},1,{"$nulls":4},3]
[4,"杨家中学",null,1,null,null,1,{"$nulls":12},1,3,null,6]
[5,"杨家小学",1,null,null,1,{"$nulls":3},1,{"$nulls":7},1,null,null,1,null,{"$f":"SUM(C9:V9)","v":5}]
[6,"徐家小学",1,null,null,1,{"$nulls":16},2]
[7,"新河小学",2,null,null,2,{"$nulls":10},1,{"$nulls":5},5]
[8,"相如幼儿园",{"$nulls":19},4,4]
[9,"石孔小学",1,{"$nulls":19},1]
[10,"桑梓小学",3,{"$nulls":19},3]
[11,"群乐小学",1,{"$nulls":19},1]
[12,"蓬安中学",null,null,4,null,null,3,{"$nulls":3},4,null,1,1,{"$nulls":4},1,null,null,14]
[13,"蓬安二中",{"$nulls":13},1,{"$nulls":6},1]
[14,"睦坝小学",{"$nulls":3},1,{"$nulls":4},1,{"$nulls":11},2]
[15,"罗家中学",null,1,null,null,1,{"$nulls":3},1,{"$nulls":7},1,{"$nulls":3},4]
[16,"福德初中",{"$nulls":10},1,{"$nulls":5},1,{"$nulls":3},2]
[17,"城西幼儿园",{"$nulls":6},1,{"$nulls":12},6,7]
[18,"城东幼儿园",{"$nulls":19},5,5]
[19,"茶亭小学",{"$nulls":8},1,{"$nulls":5},1,{"$nulls":5},2]
[20,"城东路小学",{"$nulls":15},1,{"$nulls":4},1]
[21,"相如二小",{"$nulls":15},1,{"$nulls":4},1]
[22,"巨龙小学",{"$nulls":15},1,{"$nulls":4},1]
[23,"河舒小学",{"$nulls":15},1,{"$nulls":4},1]
[24,"罗家小学",{"$nulls":15},1,{"$nulls":4},1]
[25,"兴旺小学",{"$nulls":15},1,{"$nulls":4},1]
["合计",null,{"$f":"SUM(C5:C23)","v":10},2,4,6,2,3,1,1,3,4,1,1,1,1,2,8,2,{"$f":"SUM(T5:T23)","v":3},4,16,75]